fUSD/lending_fUSD_20250113
["ID","MTS","AMOUNT","RATE_DAILY","PERIOD"]
[348791052,1736784797050,500.0,0.000228,120]
[348791054,1736784834114,200.0,0.000228,120]
[348791055,1736784850114,616.49,8.219e-05,2]
[348791057,1736785307263,153.44,0.000209,31]
[348791058,1736785307343,153.44,0.000209,31]
[348791059,1736785307391,153.44,0.000209,31]
[348791060,1736785307434,153.44,0.000209,31]
[348791061,1736785307483,153.44,0.000209,31]
[348791062,1736785307525,153.44,0.000209,31]
[348791063,1736785307580,153.44,0.000209,31]
[348791064,1736785350757,150.0,0.00021466,120]
[348791066,1736785489234,154.999205,0.0002024,31]
[348791067,1736785520828,1665.28850234,0.00023,120]
[348791068,1736785530752,150.0,0.000214,120]
[348791069,1736785538046,959.1177822,8e-05,2]
[348791071,1736785557648,13837.56423907,6.94e-05,2]
[348791087,1736785825026,719.84,8.219e-05,2]
[348791107,1736785832174,-300.0,8.983e-05,2]
[348791108,1736785832184,-1000.0,8.984e-05,2]
[348791109,1736785832193,-579.08369693,8.984e-05,2]
[348791110,1736785832207,-9430.91630307,8.984e-05,2]
[348791111,1736785832219,-250.0,9.695e-05,2]
[348791112,1736785832229,-250.0,9.709e-05,2]
[348791113,1736785832244,-847.86,9.709e-05,2]
[348791114,1736785832253,-212.98,9.771e-05,2]
[348791115,1736785832262,-920.8275,9.881e-05,2]
[348791116,1736785832272,-25183.3470996,9.889e-05,2]
[348791117,1736785832283,-2681.13771318,9.889e-05,2]
[348791118,1736785832294,-2134.74678327,9.889e-05,2]
[348791119,1736785832306,-3975.95831504,9.889e-05,2]
[348791120,1736785832317,-3446.21271739,9.889e-05,2]
[348791121,1736785832341,-719.28494317,9.889e-05,2]
[348791122,1736785832354,-234825.25592835,9.889e-05,2]
[348791123,1736785832364,-2500.0,9.896e-05,2]
[348791124,1736785832374,-5071.7772881,9.97e-05,2]
[348791125,1736785832383,-1051.83300326,9.971e-05,2]
[348791126,1736785832393,-5071.7772881,9.972e-05,2]
[348791127,1736785832402,-3164.28399501,9.973e-05,2]
[348791128,1736785832412,-502.1562931,9.973e-05,2]
[348791129,1736785832423,-303.01731203,9.973e-05,2]
[348791130,1736785832433,-1490.01580051,9.973e-05,2]
[348791131,1736785832442,-200.0,9.973e-05,2]
[348791132,1736785832452,-200.0,9.973e-05,2]
[348791133,1736785832461,-1490.01580051,9.974e-05,2]
[348791134,1736785832471,-3164.28399501,9.974e-05,2]
[348791135,1736785832480,-9917.57701451,9.975e-05,2]
[348791136,1736785832492,-9917.57701451,9.975e-05,2]
[348791137,1736785832501,-727.49976423,9.975e-05,2]
[348791138,1736785832511,-583.38688321,9.976e-05,2]
[348791139,1736785832520,-3164.28399501,9.976e-05,2]
[348791140,1736785832529,-3164.28399501,9.977e-05,2]
[348791141,1736785832538,-1490.01580051,9.978e-05,2]
[348791142,1736785832548,-727.49976423,9.978e-05,2]
[348791143,1736785832558,-200.0,9.979e-05,2]
[348791144,1736785832567,-902.66233018,9.979e-05,2]
[348791145,1736785832577,-500.0,9.98e-05,2]
[348791146,1736785832586,-500.0,9.98e-05,2]
[348791147,1736785832596,-500.0,9.98e-05,2]
[348791148,1736785832605,-500.0,9.98e-05,2]
[348791149,1736785832615,-500.0,9.98e-05,2]
[348791150,1736785832624,-500.0,9.98e-05,2]
[348791151,1736785832635,-500.0,9.98e-05,2]
[348791152,1736785832644,-500.0,9.98e-05,2]
[348791153,1736785832654,-500.0,9.98e-05,2]
[348791154,1736785832663,-500.0,9.98e-05,2]
[348791155,1736785832673,-500.0,9.98e-05,2]
[348791156,1736785832682,-500.0,9.98e-05,2]
[348791157,1736785832692,-500.0,9.98e-05,2]
[348791158,1736785832701,-500.0,9.98e-05,2]
[348791159,1736785832711,-500.0,9.98e-05,2]
[348791160,1736785832720,-502.63539076,9.98e-05,2]
[348791161,1736785832729,-500.0,9.98e-05,2]
[348791162,1736785832741,-500.0,9.98e-05,2]
[348791163,1736785832750,-500.0,9.98e-05,2]
[348791164,1736785832759,-500.0,9.98e-05,2]
[348791165,1736785832768,-500.0,9.98e-05,2]
[348791166,1736785832777,-500.0,9.98e-05,2]
[348791167,1736785832786,-500.0,9.98e-05,2]
[348791168,1736785832795,-500.0,9.98e-05,2]
[348791169,1736785832804,-557.19,9.98e-05,2]
[348791170,1736785832815,-500.0,9.98e-05,2]
[348791171,1736785832824,-500.0,9.98e-05,2]
[348791172,1736785832833,-500.0,9.98e-05,2]
[348791173,1736785832843,-500.0,9.98e-05,2]
[348791174,1736785832852,-500.0,9.98e-05,2]
[348791175,1736785832861,-500.0,9.98e-05,2]
[348791176,1736785832871,-500.0,9.98e-05,2]
[348791177,1736785832883,-500.0,9.98e-05,2]
[348791178,1736785832893,-554.91,9.98e-05,2]
[348791179,1736785832904,-500.0,9.98e-05,2]
[348791180,1736785832914,-500.0,9.98e-05,2]
[348791181,1736785832923,-500.0,9.98e-05,2]
[348791182,1736785832934,-500.0,9.98e-05,2]
[348791183,1736785832944,-569.73,9.98e-05,2]
[348791184,1736785832953,-523.31,9.98e-05,2]
[348791185,1736785832962,-500.0,9.98e-05,2]
[348791186,1736785832972,-500.0,9.98e-05,2]
[348791187,1736785832982,-500.0,9.98e-05,2]
[348791188,1736785832994,-500.0,9.98e-05,2]
[348791189,1736785833003,-500.0,9.98e-05,2]
[348791190,1736785833013,-500.0,9.98e-05,2]
[348791191,1736785833022,-500.0,9.98e-05,2]
[348791192,1736785833032,-500.0,9.98e-05,2]
[348791193,1736785833043,-500.0,9.98e-05,2]
[348791194,1736785833055,-500.0,9.98e-05,2]
[348791195,1736785833065,-500.0,9.98e-05,2]
[348791196,1736785833074,-500.0,9.98e-05,2]
[348791197,1736785833083,-500.0,9.98e-05,2]
[348791198,1736785833093,-500.0,9.98e-05,2]
[348791199,1736785833103,-500.0,9.98e-05,2]
[348791200,1736785833112,-500.0,9.98e-05,2]
[348791201,1736785833121,-500.0,9.98e-05,2]
[348791202,1736785833131,-500.0,9.98e-05,2]
[348791203,1736785833140,-500.89,9.98e-05,2]
[348791204,1736785833150,-500.0,9.98e-05,2]
[348791205,1736785833159,-500.0,9.98e-05,2]
[348791206,1736785833169,-500.0,9.98e-05,2]
[348791207,1736785833178,-500.0,9.98e-05,2]
[348791208,1736785833187,-500.0,9.98e-05,2]
[348791209,1736785833197,-500.0,9.98e-05,2]
[348791210,1736785833206,-500.0,9.98e-05,2]
[348791211,1736785833215,-500.0,9.98e-05,2]
[348791212,1736785833225,-500.0,9.98e-05,2]
[348791213,1736785833234,-500.0,9.98e-05,2]
[348791214,1736785833248,-500.0,9.98e-05,2]
[348791215,1736785833258,-731.44,9.98e-05,2]
[348791216,1736785833267,-500.0,9.98e-05,2]
[348791217,1736785833277,-589.64,9.98e-05,2]
[348791218,1736785833286,-500.0,9.98e-05,2]
[348791219,1736785833295,-500.0,9.98e-05,2]
[348791220,1736785833305,-500.0,9.98e-05,2]
[348791221,1736785833314,-500.0,9.98e-05,2]
[348791222,1736785833324,-500.0,9.98e-05,2]
[348791223,1736785833333,-872.34,9.98e-05,2]
[348791224,1736785833342,-500.0,9.98e-05,2]
[348791225,1736785833351,-500.0,9.98e-05,2]
[348791226,1736785833361,-500.0,9.98e-05,2]
[348791227,1736785833370,-500.0,9.98e-05,2]
[348791228,1736785833379,-500.0,9.98e-05,2]
[348791229,1736785833389,-500.0,9.98e-05,2]
[348791230,1736785833399,-856.22,9.98e-05,2]
[348791231,1736785833408,-603.19,9.98e-05,2]
[348791232,1736785833417,-583.38688321,9.98e-05,2]
[348791233,1736785833427,-9917.57701451,9.981e-05,2]
[348791234,1736785833438,-902.66233018,9.981e-05,2]
[348791235,1736785833448,-902.66233018,9.981e-05,2]
[348791236,1736785833457,-583.38688321,9.981e-05,2]
[348791237,1736785833467,-583.38688321,9.982e-05,2]
[348791238,1736785833477,-1490.01580051,9.982e-05,2]
[348791239,1736785833488,-9917.57701451,9.983e-05,2]
[348791240,1736785833502,-727.49976423,9.984e-05,2]
[348791241,1736785833513,-1051.83300326,9.984e-05,2]
[348791242,1736785833523,-1490.01580051,9.984e-05,2]
[348791243,1736785833534,-200.0,9.985e-05,2]
[348791244,1736785833545,-1051.83300326,9.986e-05,2]
[348791245,1736785833556,-872.34,9.987e-05,2]
[348791246,1736785833566,-583.38688321,9.988e-05,2]
[348791247,1736785833576,-3164.28399501,9.988e-05,2]
[348791248,1736785833585,-902.66233018,9.989e-05,2]
[348791249,1736785833595,-727.49976423,9.989e-05,2]
[348791250,1736785833604,-902.66233018,9.989e-05,2]
[348791251,1736785833614,-583.38688321,9.99e-05,2]
[348791252,1736785833623,-902.66233018,9.99e-05,2]
[348791253,1736785833633,-9917.57701451,9.991e-05,2]
[348791254,1736785833643,-3164.28399501,9.991e-05,2]
[348791255,1736785833653,-5071.7772881,9.991e-05,2]
[348791256,1736785833662,-1490.01580051,9.992e-05,2]
[348791257,1736785833672,-872.34,9.992e-05,2]
[348791258,1736785833683,-1051.83300326,9.992e-05,2]
[348791259,1736785833692,-5071.7772881,9.993e-05,2]
[348791260,1736785833702,-727.49976423,9.993e-05,2]
[348791261,1736785833712,-9917.57701451,9.994e-05,2]
[348791262,1736785833721,-5071.7772881,9.994e-05,2]
[348791263,1736785833731,-1051.83300326,9.995e-05,2]
[348791264,1736785833744,-1051.83300326,9.996e-05,2]
[348791265,1736785833753,-5071.7772881,9.996e-05,2]
[348791266,1736785833763,-727.49976423,9.997e-05,2]
[348791267,1736785833773,-500.0,9.999e-05,2]
[348791268,1736785833783,-1605.84,9.999e-05,2]
[348791269,1736785833793,-2116.75,9.999e-05,2]
[348791270,1736785833803,-500.0,9.999e-05,2]
[348791271,1736785833812,-102.50309113,9.999e-05,2]
[348791272,1736785833832,-836.94690887,9.999e-05,2]
[348791273,1736785833842,-2240.14,9.999e-05,2]
[348791274,1736785833851,-500.0,9.999e-05,2]
[348791275,1736785833860,-500.0,9.999e-05,2]
[348791276,1736785833871,-649.75,9.999e-05,2]
[348791277,1736785833881,-500.0,9.999e-05,2]
[348791278,1736785833890,-500.0,9.999e-05,2]
[348791279,1736785833900,-1124.1,9.999e-05,2]
[348791280,1736785833910,-643.05,9.999e-05,2]
[348791281,1736785833920,-500.0,9.999e-05,2]
[348791282,1736785833929,-500.0,9.999e-05,2]
[348791283,1736785833939,-500.0,9.999e-05,2]
[348791284,1736785833948,-500.0,9.999e-05,2]
[348791285,1736785833958,-500.0,9.999e-05,2]
[348791286,1736785833968,-500.0,9.999e-05,2]
[348791287,1736785833978,-1625.67,9.999e-05,2]
[348791288,1736785833987,-500.0,9.999e-05,2]
[348791289,1736785833998,-500.0,9.999e-05,2]
[348791290,1736785834007,-500.0,9.999e-05,2]
[348791291,1736785834017,-500.0,9.999e-05,2]
[348791292,1736785834026,-598.61,9.999e-05,2]
[348791293,1736785834037,-610.07,9.999e-05,2]
[348791294,1736785834050,-500.0,9.999e-05,2]
[348791295,1736785834060,-500.0,9.999e-05,2]
[348791296,1736785834070,-500.0,9.999e-05,2]
[348791297,1736785834079,-500.0,9.999e-05,2]
[348791298,1736785834089,-500.0,9.999e-05,2]
[348791299,1736785834099,-289.29871139,9.999e-05,2]
[348791300,1736785834108,-160286.17166189,0.0001,2]
[348791301,1736785834118,-1168512.26259055,0.0001,2]
[348791302,1736785834133,-98625.0,0.0001,2]
[348791303,1736785834145,-887.80834405,0.0001,2]
[348791304,1736785834157,-10499.999999,0.0001,2]
[348791305,1736785834179,-754.79867064,0.0001,2]
[348791306,1736785834195,-139340.10597724,0.0001,2]
[348791307,1736785834217,-941.61,0.0001,2]
[348791308,1736785834245,-1601.51731505,0.0001,2]
[348791309,1736785834257,-279.607082,0.0001,2]
[348791310,1736785834268,-426.27575759,0.0001,2]
[348791311,1736785834280,-982.43337259,0.0001,2]
[348791312,1736785834354,-4091.67034365,0.0001,2]
[348791313,1736785834377,-5112.43018021,0.0001,2]
[348791319,1736785837914,-500.0,9.999e-05,2]
[348791320,1736785837925,-500.0,9.999e-05,2]
[348791321,1736785837937,-500.0,9.999e-05,2]
[348791322,1736785837948,-229.68845471,9.999e-05,2]
[348791323,1736785837962,-270.31154529,9.999e-05,2]
[348791324,1736785837973,-6782.92815515,0.0001,2]
[348791325,1736785837986,-31274.87494545,0.0001,2]
[348791326,1736785838013,-786.90126425,0.0001,2]
[348791327,1736785838024,-64463.93428212,0.0001,2]
[348791328,1736785838035,-712.42494917,0.0001,2]
[348791329,1736785838048,-3449.635,0.0001,2]
[348791330,1736785838285,-923.00813186,0.0001,2]
[348791331,1736785838297,-29876.22477152,0.0001,2]
[348791332,1736785838308,-905.69999991,0.0001,2]
[348791333,1736785838320,-47582.63231738,0.0001,2]
[348791334,1736785838331,-495.69255631,0.0001,2]
[348791335,1736785838343,-816.09563293,0.0001,2]
[348791336,1736785838357,-561.18935367,0.0001,2]
[348791337,1736785838369,-98481.00000002,0.0001,2]
[348791338,1736785838381,-17628.35844827,0.0001,2]
[348791339,1736785838392,-18328.36500749,0.0001,2]
[348791340,1736785838422,-986.44546,9.999e-05,2]
[348791502,1736785840066,-406.85454,9.999e-05,2]
[348791505,1736785840076,-500.0,9.999e-05,2]
[348791507,1736785840087,-500.0,9.999e-05,2]
[348791508,1736785840096,-12343.90279751,0.0001,2]
[348791511,1736785840108,-2299.21183164,0.0001,2]
[348791525,1736785840229,-4476473.34487676,0.0001,2]
[348791527,1736785840240,-1600.65,0.0001,2]
[348791539,1736785840345,-6125.0583185,0.0001,2]
[348791551,1736785840455,-49705.1562594,0.0001,2]
[348791863,1736785843117,-390.33001957,9.999e-05,2]
[348791865,1736785843130,-109.66998043,9.999e-05,2]
[348791868,1736785843141,-500.0,9.999e-05,2]
[348791871,1736785843150,-500.0,9.999e-05,2]
[348791873,1736785843160,-3834.11328407,0.0001,2]
[348791878,1736785843172,-4433.40736339,0.0001,2]
[348791891,1736785843234,-462555.71883181,0.0001,2]
[348792225,1736785846085,-500.0,9.999e-05,2]
[348792227,1736785846095,-500.0,9.999e-05,2]
[348792229,1736785846105,-109000.0,0.0001,2]
[348792236,1736785846166,-83916.19990454,0.0001,2]
[348792238,1736785846177,-3017.3976,0.0001,2]
[348792241,1736785846193,-6937.68034724,0.0001,2]
[348792247,1736785846244,-500.0,9.999e-05,2]
[348792249,1736785846253,-68443.94159525,0.0001,2]
[348792255,1736785846302,-1033.74183959,0.0001,2]
[348792324,1736785911172,153.47,0.000209,31]
[348792325,1736785911214,153.47,0.000209,31]
[348792326,1736785911254,153.47,0.000209,31]
[348792327,1736785911298,153.47,0.000209,31]
[348792328,1736785911342,153.47,0.000209,31]
[348792329,1736785911391,153.47,0.000209,31]
[348792330,1736785911435,153.47,0.000209,31]
[348792331,1736785993618,500.0,0.00022499,120]
[348792332,1736785995731,2000.0,0.00022499,120]
[348792333,1736785997900,500.0,0.00022499,120]
[348792334,1736786010750,150.0,0.00021681,120]
[348792335,1736786033578,200.0,0.00022499,120]
[348792341,1736786513654,153.51,0.000209,31]
[348792342,1736786513737,153.51,0.000209,31]
[348792343,1736786513810,153.51,0.000209,31]
[348792344,1736786513883,153.51,0.000209,31]
[348792345,1736786513934,153.51,0.000209,31]
[348792346,1736786513997,153.51,0.000209,31]
[348792347,1736786514050,153.51,0.000209,31]
[348792354,1736786704556,724.21,8.219e-05,2]
[348792355,1736786790617,1000.0,0.00023,120]
[348792362,1736786876716,1000.0,0.00023,120]
[348792387,1736787032327,-632.08,8.553e-05,2]
[348792389,1736787032338,-168.87,8.621e-05,2]
[348792391,1736787032348,-250.0,8.623e-05,2]
[348792393,1736787032357,-168.87,8.628e-05,2]
[348792395,1736787032366,-168.87,8.636e-05,2]
[348792397,1736787032376,-168.87,8.643e-05,2]
[348792398,1736787032386,-250.0,8.649e-05,2]
[348792399,1736787032396,-168.87,8.65e-05,2]
[348792400,1736787032407,-777.67569044,8.654e-05,2]
[348792401,1736787032435,-1101.0,8.654e-05,2]
[348792402,1736787032496,-2499.3,8.654e-05,2]
[348792403,1736787032508,-503.76,8.654e-05,2]
[348792404,1736787032520,-16215.50325654,8.654e-05,2]
[348792405,1736787032532,-275.83066418,8.654e-05,2]
[348792406,1736787032563,-2265.91038884,8.654e-05,2]
[348792407,1736787032572,-168.87,8.657e-05,2]
[348792408,1736787032582,-168.87,8.664e-05,2]
[348792409,1736787032592,-426.34,8.721e-05,2]
[348792410,1736787032601,-600.0,9.3e-05,3]
[348792411,1736787032612,-150.0,9.397e-05,2]
[348792412,1736787032621,-1200.0,9.4e-05,3]
[348792413,1736787032631,-182.73,9.426e-05,2]
[348792414,1736787032640,-182.73,9.429e-05,2]
[348792415,1736787032649,-182.73,9.431e-05,2]
[348792416,1736787032659,-182.73,9.434e-05,2]
[348792417,1736787032668,-182.73,9.436e-05,2]
[348792418,1736787032677,-182.73,9.439e-05,2]
[348792419,1736787032687,-182.73,9.441e-05,2]
[348792420,1736787032696,-182.73,9.444e-05,2]
[348792421,1736787032706,-182.73,9.446e-05,2]
[348792422,1736787032715,-182.73,9.449e-05,2]
[348792423,1736787032724,-182.73,9.451e-05,2]
[348792424,1736787032733,-182.73,9.454e-05,2]
[348792425,1736787032742,-182.73,9.456e-05,2]
[348792426,1736787032752,-182.73,9.459e-05,2]
[348792427,1736787032761,-182.73,9.461e-05,2]
[348792428,1736787032770,-182.73,9.464e-05,2]
[348792429,1736787032779,-150.0,9.466e-05,2]
[348792430,1736787032789,-182.73,9.466e-05,2]
[348792431,1736787032798,-182.73,9.469e-05,2]
[348792432,1736787032807,-182.73,9.471e-05,2]
[348792433,1736787032817,-182.73,9.474e-05,2]
[348792434,1736787032826,-152.60307801,9.5e-05,2]
[348792435,1736787032837,-1800.0,9.5e-05,3]
[348792436,1736787032846,-621.9,9.589e-05,2]
[348792437,1736787032855,-2400.0,9.6e-05,3]
[348792438,1736787032864,-3000.0,9.7e-05,3]
[348792439,1736787032874,-772.26,9.737e-05,2]
[348792440,1736787032884,-564.03,9.737e-05,2]
[348792441,1736787032893,-437.97,9.737e-05,2]
[348792442,1736787032903,-772.26,9.737e-05,2]
[348792443,1736787032913,-772.26,9.737e-05,2]
[348792444,1736787032922,-437.97,9.737e-05,2]
[348792445,1736787032931,-691.35,9.737e-05,2]
[348792446,1736787032941,-1000.0,9.788e-05,2]
[348792447,1736787032950,-403.79035117,9.789e-05,2]
[348792448,1736787032961,-29637.95290649,9.789e-05,2]
[348792449,1736787032990,-6082.90454234,9.789e-05,2]
[348792450,1736787033000,-1000.0,9.8e-05,10]
[348792451,1736787033009,-600.0,9.8e-05,3]
[348792452,1736787033018,-211.7887,9.8e-05,2]
[348792453,1736787033028,-2627.7786,9.81e-05,2]
[348792454,1736787033038,-426.34,9.811e-05,2]
[348792455,1736787033047,-2500.0,9.898e-05,2]
[348792456,1736787033057,-3166.5811,9.899e-05,2]
[348792457,1736787033066,-26527.13073058,9.899e-05,2]
[348792458,1736787033078,-7893.45161813,9.899e-05,2]
[348792459,1736787033090,-11167.17955129,9.899e-05,2]
[348792460,1736787033100,-3979.82044871,9.9e-05,2]
[348792461,1736787033112,-3910.55302001,9.9e-05,2]
[348792462,1736787033147,-581.78040484,9.9e-05,2]
[348792463,1736787033159,-1727.07668005,9.9e-05,2]
[348792464,1736787033177,-904.93618024,9.9e-05,2]
[348792465,1736787033199,-623.49309,9.9e-05,2]
[348792466,1736787033210,-1187.8,9.9e-05,2]
[348792467,1736787035060,775.0,0.00023,120]
[348792468,1736787035476,-10431.76881917,9.9e-05,2]
[348792481,1736787035711,-19354.63185,9.9e-05,2]
[348792482,1736787035723,-1000.0,9.9e-05,10]
[348792483,1736787035732,-600.0,9.9e-05,3]
[348792484,1736787035741,-164.89889846,9.9e-05,2]
[348792485,1736787035752,-156.7735821,9.9e-05,2]
[348792486,1736787035761,-6149.45087271,9.91e-05,2]
[348792487,1736787035772,-2500.0,9.91e-05,2]
[348792488,1736787035796,-4401.14580399,9.91e-05,2]
[348792489,1736787035805,-1056.93,9.97e-05,2]
[348792491,1736787035815,-1047.23,9.97e-05,2]
[348792493,1736787035824,-500.0,9.97e-05,2]
[348792495,1736787035833,-581.58,9.97e-05,2]
[348792496,1736787035842,-500.0,9.97e-05,2]
[348792498,1736787035851,-500.0,9.97e-05,2]
[348792500,1736787035861,-500.0,9.97e-05,2]
[348792502,1736787035870,-6750.77920858,9.971e-05,2]
[348792504,1736787035883,-7085.48091554,9.971e-05,2]
[348792506,1736787035892,-91853.73912196,9.971e-05,2]
[348792784,1736787038368,-500.0,9.97e-05,2]
[348792786,1736787038379,-728.6,9.97e-05,2]
[348792788,1736787038389,-47966.4,9.971e-05,2]
[348792791,1736787038410,-95679.92147277,9.971e-05,2]
[348792793,1736787038422,-1896.1943,9.971e-05,2]
[348792795,1736787038433,-790.799199,9.971e-05,2]
[348792797,1736787038444,-154108.48275632,9.971e-05,2]
[348792799,1736787038455,-122597.26425105,9.971e-05,2]
[348792801,1736787038466,-392295.53685005,9.973e-05,2]
[348792803,1736787038475,-500.0,9.973e-05,2]
[348792804,1736787038487,-500.0,9.973e-05,2]
[348792805,1736787038498,-151.923544,9.973e-05,2]
[348792806,1736787038507,-11873.02692591,9.973e-05,2]
[348792807,1736787038516,-200.0,9.973e-05,2]
[348792808,1736787038526,-417.86304267,9.974e-05,2]
[348792809,1736787038535,-392295.53685005,9.976e-05,2]
[348792810,1736787038544,-12413.45082611,9.976e-05,2]
[348792811,1736787038554,-13836.26012412,9.977e-05,2]
[348792812,1736787038563,-200.0,9.978e-05,2]
[348792813,1736787038572,-11873.02692591,9.98e-05,2]
[348792815,1736787038581,-122597.26425105,9.98e-05,2]
[348792816,1736787038591,-998.24,9.98e-05,2]
[348792818,1736787038600,-13836.26012412,9.981e-05,2]
[348792820,1736787038610,-12413.45082611,9.981e-05,2]
[348792822,1736787038620,-11873.02692591,9.983e-05,2]
[348792824,1736787038630,-11873.02692591,9.984e-05,2]
[348792826,1736787038639,-417.86304267,9.986e-05,2]
[348792828,1736787038648,-392295.53685005,9.986e-05,2]
[348792830,1736787038658,-12413.45082611,9.987e-05,2]
[348792832,1736787038668,-417.86304267,9.987e-05,2]
[348792834,1736787038678,-417.86304267,9.987e-05,2]
[348792836,1736787038688,-122597.26425105,9.987e-05,2]
[348792839,1736787038697,-12413.45082611,9.987e-05,2]
[348792842,1736787038706,-200.0,9.988e-05,2]
[348792844,1736787038716,-417.86304267,9.988e-05,2]
[348792847,1736787038725,-11873.02692591,9.988e-05,2]
[348792849,1736787038735,-417.86304267,9.988e-05,2]
[348792851,1736787038743,-122597.26425105,9.989e-05,2]
[348792853,1736787038754,-122597.26425105,9.989e-05,2]
[348792855,1736787038763,-11873.02692591,9.989e-05,2]
[348792857,1736787038772,-12413.45082611,9.989e-05,2]
[348792859,1736787038782,-392295.53685005,9.991e-05,2]
[348792861,1736787038791,-13836.26012412,9.991e-05,2]
[348792863,1736787038800,-13836.26012412,9.994e-05,2]
[348792865,1736787038809,-392295.53685005,9.994e-05,2]
[348792867,1736787038818,-12413.45082611,9.996e-05,2]
[348792869,1736787038827,-500.0,9.997e-05,2]
[348792871,1736787038836,-1736.28,9.997e-05,2]
[348792873,1736787038845,-2226.71,9.997e-05,2]
[348792875,1736787038855,-1048.77,9.997e-05,2]
[348792877,1736787038864,-500.0,9.997e-05,2]
[348792879,1736787038873,-975.61,9.997e-05,2]
[348792881,1736787038883,-2368.18,9.997e-05,2]
[348792883,1736787038893,-1732.23,9.997e-05,2]
[348792885,1736787038902,-500.0,9.997e-05,2]
[348792887,1736787038911,-500.0,9.997e-05,2]
[348792888,1736787038920,-767.82,9.997e-05,2]
[348792890,1736787038930,-500.0,9.997e-05,2]
[348792892,1736787038940,-500.0,9.997e-05,2]
[348792894,1736787038950,-500.0,9.997e-05,2]
[348792896,1736787038959,-1169.9,9.997e-05,2]
[348792898,1736787038968,-500.0,9.997e-05,2]
[348792900,1736787038977,-694.32,9.997e-05,2]
[348792902,1736787038986,-1836.88,9.997e-05,2]
[348792904,1736787038996,-500.0,9.998e-05,2]
[348792906,1736787039007,-500.0,9.998e-05,2]
[348792908,1736787039017,-500.0,9.998e-05,2]
[348792910,1736787039026,-500.0,9.998e-05,2]
[348792912,1736787039035,-500.0,9.998e-05,2]
[348792914,1736787039045,-500.0,9.998e-05,2]
[348792916,1736787039054,-500.0,9.998e-05,2]
[348792918,1736787039063,-500.0,9.998e-05,2]
[348792920,1736787039072,-500.0,9.998e-05,2]
[348792922,1736787039082,-500.0,9.998e-05,2]
[348792924,1736787039091,-500.0,9.998e-05,2]
[348792926,1736787039100,-500.0,9.998e-05,2]
[348792928,1736787039110,-500.0,9.998e-05,2]
[348792930,1736787039119,-235.26340025,9.998e-05,2]
[348792931,1736787039128,-500.0,9.998e-05,2]
[348792932,1736787039137,-500.0,9.998e-05,2]
[348792933,1736787039147,-500.0,9.998e-05,2]
[348792934,1736787039156,-500.0,9.998e-05,2]
[348792935,1736787039166,-500.0,9.998e-05,2]
[348792936,1736787039175,-579.23,9.998e-05,2]
[348792937,1736787039184,-500.0,9.998e-05,2]
[348792938,1736787039194,-500.0,9.998e-05,2]
[348792939,1736787039204,-631.43,9.998e-05,2]
[348792940,1736787039213,-500.0,9.998e-05,2]
[348792941,1736787039222,-526.56,9.998e-05,2]
[348792942,1736787039232,-500.0,9.998e-05,2]
[348792943,1736787039242,-500.0,9.998e-05,2]
[348792944,1736787039255,-500.0,9.998e-05,2]
[348792945,1736787039264,-500.0,9.998e-05,2]
[348792946,1736787039273,-500.0,9.998e-05,2]
[348792947,1736787039283,-500.0,9.998e-05,2]
[348792948,1736787039292,-500.0,9.998e-05,2]
[348792949,1736787039301,-500.0,9.998e-05,2]
[348792950,1736787039310,-500.0,9.998e-05,2]
[348792951,1736787039320,-500.0,9.998e-05,2]
[348792952,1736787039329,-500.0,9.998e-05,2]
[348792953,1736787039339,-500.0,9.998e-05,2]
[348792954,1736787039348,-500.0,9.998e-05,2]
[348792956,1736787039357,-500.0,9.998e-05,2]
[348792958,1736787039366,-500.0,9.998e-05,2]
[348792960,1736787039375,-500.0,9.998e-05,2]
[348792962,1736787039384,-500.0,9.998e-05,2]
[348792964,1736787039393,-500.0,9.998e-05,2]
[348792966,1736787039402,-786.8,9.998e-05,2]
[348792968,1736787039416,-684.01,9.998e-05,2]
[348792970,1736787039426,-500.0,9.998e-05,2]
[348792972,1736787039435,-500.0,9.998e-05,2]
[348792974,1736787039444,-804.45,9.998e-05,2]